fUST/lending_fUST_20250514
["ID","MTS","AMOUNT","RATE_DAILY","PERIOD"]
[361047998,1747213852427,-500.0,0.00021371,2]
[361047999,1747213852437,-625.83102018,0.00021371,2]
[361048000,1747213852447,-500.0,0.00021371,2]
[361048001,1747213852456,-500.0,0.00021371,2]
[361048002,1747213852465,-500.0,0.00021371,2]
[361048003,1747213852620,-500.0,0.00021371,2]
[361048004,1747213852631,-600.0,0.00021371,2]
[361048005,1747213852641,-500.0,0.00021371,2]
[361048006,1747213852652,-500.0,0.00021371,2]
[361048007,1747213852662,-500.0,0.00021371,2]
[361048008,1747213852673,-500.0,0.00021371,2]
[361048009,1747213852682,-500.23689132,0.00021371,2]
[361048010,1747213852692,-500.0,0.00021371,2]
[361048011,1747213852702,-404.0,0.00021592,2]
[361048012,1747213852712,-622.09,0.000216,7]
[361048013,1747213852722,-2356.72031917,0.00021624,5]
[361048014,1747213852732,-1000.0,0.00021893,2]
[361048015,1747213852741,-400.53965725,0.00021917,2]
[361048016,1747213852751,-251.0,0.00021918,3]
[361048017,1747213852761,-150.0,0.00021918,2]
[361048018,1747213852771,-1000.0,0.00021919,2]
[361048019,1747213852780,-1200.0,0.00021919,2]
[361048020,1747213852791,-1000.0,0.00021919,2]
[361048021,1747213852801,-1000.0,0.00021919,2]
[361048022,1747213852810,-1000.0,0.00021919,2]
[361048023,1747213852820,-500.0,0.00021973,2]
[361048024,1747213852830,-618.71508304,0.00021973,2]
[361048025,1747213852839,-500.0,0.00021973,2]
[361048026,1747213852852,-500.0,0.00021973,2]
[361048027,1747213852861,-62033.56766006,0.00022,2]
[361048028,1747213852871,-226.60632784,0.00022,3]
[361048029,1747213852880,-490000.0,0.00022,2]
[361048030,1747213852891,-151.0,0.00022,7]
[361048031,1747213852900,-151.0,0.00022,7]
[361048032,1747213852909,-151.0,0.00022,7]
[361048033,1747213852919,-253.035677,0.00022,7]
[361048034,1747213852931,-151.0,0.00022,7]
[361048035,1747213852941,-151.0,0.00022,7]
[361048036,1747213852950,-151.0,0.00022,7]
[361048037,1747213852959,-151.0,0.00022,7]
[361048038,1747213852969,-151.0,0.00022,7]
[361048039,1747213852980,-2512.0,0.00022,2]
[361048040,1747213852989,-151.0,0.00022,7]
[361048041,1747213853000,-2356.72031917,0.00022072,6]
[361048042,1747213853011,-175.7170149,0.00022188,2]
[361048043,1747213853021,-175.7170149,0.00022188,2]
[361048044,1747213853031,-1500.0,0.00022441,2]
[361048045,1747213853041,-1500.0,0.00022467,2]
[361048046,1747213853052,-1800.0,0.00022467,2]
[361048047,1747213853062,-1500.0,0.00022467,2]
[361048048,1747213853072,-1500.0,0.00022467,2]
[361048049,1747213853083,-1500.0,0.00022467,2]
[361048050,1747213853094,-4000.0,0.000225,4]
[361048051,1747213853105,-2356.72031917,0.00022521,7]
[361048052,1747213853115,-717.073103,0.00022603,2]
[361048053,1747213853125,-200.0,0.0002288,6]
[361048054,1747213853135,-1714.2857576,0.00022884,2]
[361048055,1747213853145,-152.47,0.000229,31]
[361048056,1747213853156,-152.47,0.000229,31]
[361048057,1747213853166,-152.47,0.000229,31]
[361048058,1747213853176,-152.47,0.000229,31]
[361048059,1747213853186,-152.47,0.000229,31]
[361048060,1747213853195,-152.47,0.000229,31]
[361048061,1747213853205,-152.47,0.000229,31]
[361048062,1747213853215,-152.47,0.000229,31]
[361048063,1747213853225,-152.47,0.000229,31]
[361048064,1747213853235,-152.47,0.000229,31]
[361048065,1747213853244,-152.47,0.000229,31]
[361048066,1747213853254,-152.47,0.000229,31]
[361048067,1747213853264,-151.54394486,0.00022954,2]
[361048068,1747213853274,-170.014917,0.00022959,2]
[361048069,1747213853284,-2356.72031917,0.00022969,8]
[361048070,1747213853294,-2000.0,0.00022989,2]
[361048071,1747213853304,-52548.48923061,0.00023,2]
[361048072,1747213853313,-1090.70852387,0.00023,30]
[361048073,1747213853323,-1790.0,0.00023,2]
[361048074,1747213853334,-2000.0,0.00023,2]
[361048075,1747213853343,-2000.0,0.00023,2]
[361048076,1747213853354,-314.30604044,0.00023,30]
[361048077,1747213853363,-8858.73,0.00023,7]
[361048078,1747213853374,-750.0,0.00023,7]
[361048079,1747213853384,-152.0,0.00023,3]
[361048080,1747213853393,-279.19336048,0.00023,3]
[361048081,1747213853404,-320.0,0.00023,3]
[361048082,1747213853414,-359.20241302,0.00023,3]
[361048083,1747213853424,-997.9747837,0.00023,7]
[361048084,1747213853434,-997.9747837,0.00023,30]
[361048085,1747213853443,-160.0,0.00023,7]
[361048086,1747213853453,-314.30604044,0.00023,30]
[361048087,1747213853462,-7260.90154915,0.00023,7]
[361048088,1747213853622,-4984.69140695,0.00023,7]
[361048089,1747213853634,-381.83123769,0.00023,7]
[361048090,1747213853643,-1832.59836117,0.00023,30]
[361048091,1747213853666,-4000.00065251,0.00023,30]
[361048092,1747213853677,-493.28256153,0.00023,30]
[361048093,1747213853788,-296.85510642,0.00013497,2]
[361048094,1747213853797,-400.0,0.00013698,2]
[361048095,1747213853807,-400.0,0.00013972,2]
[361048096,1747213853816,-1484.39489358,0.00023,30]
[361048097,1747213853828,-4729.4593195,0.00023,30]
[361048098,1747213853840,-87.6884055,0.00023,30]
[361048099,1747213853851,-212.21045333,0.00023,7]
[361048100,1747213853862,-212.21045333,0.00023,30]
[361048101,1747213853871,-200.0,0.00023,2]
[361048102,1747213853881,-2000.0,0.00023015,2]
[361048103,1747213853890,-2400.0,0.00023015,2]
[361048104,1747213853900,-2000.0,0.00023015,2]
[361048105,1747213853910,-2000.0,0.00023015,2]
[361048106,1747213853919,-1874.39593612,0.00023015,2]
[361048107,1747213853929,-500.0,0.0002325,2]
[361048108,1747213853938,-500.0,0.0002325,2]
[361048109,1747213853947,-151.0,0.00023298,7]
[361048110,1747213853956,-151.0,0.00023298,7]
[361048111,1747213853965,-151.0,0.00023298,7]
[361048112,1747213853974,-5000.0,0.00023298,2]
[361048113,1747213853983,-1179.49,0.0002335,7]
[361048114,1747213853993,-170.014917,0.00023383,4]
[361048115,1747213854002,-2356.72031917,0.00023417,9]
[361048116,1747213854012,-1179.49,0.0002345,6]
[361048117,1747213854022,-200.0,0.00023489,2]
[361048118,1747213854031,-480.02006458,0.00023537,2]
[361048119,1747213854040,-1179.49,0.0002355,4]
[361048120,1747213854049,-2500.0,0.00023563,2]
[361048121,1747213854058,-3000.0,0.00023563,2]
[361048122,1747213854067,-2500.0,0.00023563,2]
[361048123,1747213854077,-1501.83082906,0.00023563,2]
[361048124,1747213854091,-1179.49,0.0002365,7]
[361048125,1747213854100,-160.0,0.00023653,4]
[361048126,1747213854110,-1179.49,0.0002375,5]
[361048127,1747213854119,-173.9,0.000238,31]
[361048128,1747213854129,-173.9,0.000238,31]
[361048129,1747213854139,-152.47,0.000238,31]
[361048130,1747213854148,-152.47,0.000238,31]
[361048131,1747213854158,-152.47,0.000238,31]
[361048132,1747213854168,-152.47,0.000238,31]
[361048133,1747213854178,-152.47,0.000238,31]
[361048134,1747213854188,-152.47,0.000238,31]
[361048135,1747213854198,-152.47,0.000238,31]
[361048136,1747213854207,-152.47,0.000238,31]
[361048137,1747213854217,-152.47,0.000238,31]
[361048138,1747213854227,-152.47,0.000238,31]
[361048139,1747213854236,-152.47,0.000238,31]
[361048140,1747213854246,-152.47,0.000238,31]
[361048141,1747213854256,-152.47,0.000238,31]
[361048142,1747213854266,-152.47,0.000238,31]
[361048143,1747213854276,-152.47,0.000238,31]
[361048144,1747213854287,-152.47,0.000238,31]
[361048145,1747213854297,-152.47,0.000238,31]
[361048146,1747213854306,-152.47,0.000238,31]
[361048147,1747213854317,-152.47,0.000238,31]
[361048148,1747213854326,-152.47,0.000238,31]
[361048149,1747213854335,-1179.49,0.0002385,6]
[361048150,1747213854344,-2356.72031917,0.00023866,10]
[361048151,1747213854354,-1179.49,0.0002395,7]
[361048152,1747213854364,-126481.2266272,0.00024,2]
[361048153,1747213854373,-2129.48,0.00024,2]
[361048154,1747213854386,-1679.11186938,0.00024,2]
[361048155,1747213854395,-151.0,0.00024,14]
[361048156,1747213854404,-1336.47717256,0.00024,120]
[361048157,1747213854414,-2000.0,0.00024,2]
[361048158,1747213854423,-2000.0,0.00024,2]
[361048159,1747213854433,-189.045098,0.00024,7]
[361048160,1747213854442,-151.0,0.00024,7]
[361048161,1747213854452,-151.0,0.00024,7]
[361048162,1747213854461,-151.0,0.00024,7]
[361048163,1747213854470,-151.0,0.00024,7]
[361048164,1747213854479,-160.0,0.00024,7]
[361048165,1747213854491,-160.0,0.00024,10]
[361048166,1747213854500,-997.9747837,0.00024,10]
[361048167,1747213854509,-151.0,0.00024,7]
[361048168,1747213854520,-160.0,0.00024,7]
[361048169,1747213854529,-160.0,0.00024,10]
[361048170,1747213854538,-160.0,0.00024,7]
[361048171,1747213854547,-160.0,0.00024,10]
[361048172,1747213854556,-160.0,0.00024,7]
[361048173,1747213854566,-160.0,0.00024,10]
[361048174,1747213854575,-314.30604044,0.00024,10]
[361048175,1747213854585,-12627.42419379,0.00024,10]
[361048176,1747213854595,-212.21045333,0.00024,10]
[361048177,1747213854605,-422.27619506,0.00024,7]
[361048178,1747213854614,-422.27619506,0.00024,10]
[361048179,1747213854624,-160.0,0.00024,7]
[361048180,1747213854633,-160.0,0.00024,10]
[361048181,1747213854643,-1179.49,0.0002405,7]
[361048182,1747213854654,-8858.73,0.000241,7]
[361048183,1747213854663,-3000.0,0.00024111,2]
[361048184,1747213854673,-3600.0,0.00024111,2]
[361048185,1747213854683,-3000.0,0.00024111,2]
[361048186,1747213854692,-1179.49,0.0002415,3]
[361048187,1747213854702,-170.699663,0.00024206,7]
[361048188,1747213854712,-170.014917,0.00024206,7]
[361048189,1747213854722,-1179.49,0.0002425,7]
[361048190,1747213854732,-2356.72031917,0.00024314,10]
[361048191,1747213854741,-151.0,0.00024314,7]
[361048192,1747213854750,-1179.49,0.0002435,6]
[361048193,1747213854760,-1179.49,0.0002445,7]
[361048194,1747213854769,-200.0,0.0002448,10]
[361048195,1747213854778,-4150.26066897,0.00024533,2]
[361048196,1747213854787,-1179.49,0.0002455,4]
[361048197,1747213854797,-170.699663,0.00024567,3]
[361048198,1747213854807,-170.014917,0.00024567,3]
[361048199,1747213854816,-179.84969877,0.000246,120]
[361048200,1747213854826,-76619.00241954,0.00024626,10]
[361048201,1747213854840,-9531.34878072,0.00024626,10]
[361048202,1747213854850,-1179.49,0.0002465,6]
[361048203,1747213854860,-200.0,0.00024657,2]
[361048204,1747213854869,-207.56801598,0.00024657,2]
[361048205,1747213854879,-300.0,0.00024658,2]
[361048206,1747213854888,-150.0,0.00024658,2]
[361048207,1747213854898,-200.0,0.00024658,15]
[361048208,1747213854908,-200.0,0.00024658,2]
[361048209,1747213854918,-380.0,0.00024658,2]
[361048210,1747213854928,-326.24056869,0.00024658,2]
[361048211,1747213854938,-500.0,0.00024658,2]
[361048212,1747213854947,-500.0,0.00024658,2]
[361048213,1747213854956,-500.0,0.00024658,2]
[361048214,1747213854965,-500.0,0.00024658,2]
[361048215,1747213854974,-500.0,0.00024658,2]
[361048216,1747213854984,-423.58356587,0.00024658,2]
[361048217,1747213854993,-271.10057859,0.00024658,2]
[361048218,1747213855003,-500.0,0.00024658,2]
[361048219,1747213855012,-1452.50080248,0.00024659,2]
[361048220,1747213855022,-4200.0,0.00024659,2]
[361048221,1747213855160,-3500.0,0.00024659,2]
[361048222,1747213855171,-5266.21189191,0.000247,7]
[361048223,1747213855183,-1351.5434118,0.000247,7]
[361048224,1747213855195,-4206.21136439,0.000247,7]
[361048225,1747213855207,-519.83149545,0.000247,7]
[361048226,1747213855219,-519.1,0.000247,7]
[361048227,1747213855231,-6708.82950764,0.000247,7]
[361048228,1747213855243,-15740.06243443,0.000247,7]
[361048229,1747213855323,-500.0,0.00013597,2]
[361048230,1747213855333,-400.0,0.00013698,2]
[361048231,1747213855342,-113.7980449,0.00013698,2]
[361048232,1747213855353,-286.2019551,0.00013698,2]
[361048233,1747213855363,-400.0,0.00013698,2]
[361048234,1747213855373,-206.0980449,0.00013698,2]
[361048235,1747213855385,-1659.20805817,0.00013698,2]
[361048236,1747213855396,-9497.23298766,0.00013698,2]
[361048237,1747213855410,-1155.91288325,0.00013698,2]
[361048241,1747214627926,-463.1576437,0.00011532,2]
[361048242,1747214627953,-300.0,0.00012406,2]
[361048243,1747214627980,-500.0,0.00012407,2]
[361048244,1747214628007,-500.0,0.00012407,2]
[361048245,1747214628034,-500.0,0.00012407,2]
[361048246,1747214628060,-371.61208296,0.00012407,2]
[361048247,1747214628090,-500.0,0.00012407,2]
[361048248,1747214628118,-211.69653016,0.00012407,2]
[361048249,1747214628146,-500.0,0.00012407,2]
[361048250,1747214628175,-312.00000145,0.00012407,2]
[361048251,1747214628201,-500.0,0.00012407,2]
[361048252,1747214628226,-228.90421741,0.00012407,2]
[361048253,1747214628254,-500.0,0.00012407,2]
[361048254,1747214628508,-500.0,0.00012407,2]
[361048255,1747214628532,-502.36926287,0.00012407,2]
[361048256,1747214628559,-500.0,0.00012407,2]
[361048257,1747214628582,-500.0,0.00012407,2]
[361048258,1747214628606,-500.0,0.00012407,2]
[361048259,1747214628629,-500.0,0.00012407,2]
[361048260,1747214628653,-500.0,0.00012407,2]
[361048261,1747214628677,-500.0,0.00012407,2]
[361048262,1747214628700,-500.0,0.00012407,2]
[361048263,1747214628722,-35231.83414871,0.00012407,2]
[361048264,1747214628745,-500.0,0.00012408,2]
[361048265,1747214628768,-500.0,0.00012408,2]
[361048266,1747214628792,-329.75719196,0.00012408,2]
[361048267,1747214628815,-500.0,0.00012408,2]
[361048268,1747214628837,-178.11748416,0.00012408,2]
[361048269,1747214628859,-500.0,0.00012408,2]
[361048270,1747214628883,-500.0,0.00012408,2]
[361048271,1747214628906,-500.0,0.00012408,2]
[361048272,1747214628930,-500.0,0.00012408,2]
[361048273,1747214628955,-500.0,0.00012408,2]
[361048274,1747214628979,-300.0,0.00012408,2]
[361048275,1747214629003,-24082.9576462,0.00012413,2]
[361048276,1747214629026,-8410.6989983,0.00012413,2]
[361048277,1747214629051,-531.90114342,0.000129,2]
[361048278,1747214629078,-525.80298578,0.00013698,2]
[361048279,1747214629105,-400.0,0.00013698,2]
[361048280,1747214629131,-400.0,0.00013698,2]
[361048281,1747214629154,-400.0,0.00013698,2]
[361048282,1747214629178,-400.0,0.00013698,2]
[361048283,1747214629202,-400.0,0.00013698,2]
[361048284,1747214629225,-419.30115141,0.00013698,2]
[361048285,1747214629251,-1000.0,0.00013698,2]
[361048286,1747214629275,-400.47788263,0.00013698,2]
[361048287,1747214629299,-400.0,0.00013698,2]
[361048288,1747214629322,-400.0,0.00013698,2]
[361048289,1747214629346,-508.92785284,0.00013698,2]
[361048290,1747214629370,-290.09457008,0.00013698,2]
[361048291,1747214629393,-401.94796961,0.00013698,2]
[361048292,1747214629418,-400.0,0.00013698,2]
[361048293,1747214629442,-400.0,0.00013698,2]
[361048294,1747214629466,-400.0,0.00013698,2]
[361048295,1747214629491,-400.0,0.00013698,2]
[361048296,1747214629514,-185.90187588,0.00013698,2]
[361048297,1747214629538,-400.0,0.00013698,2]
[361048298,1747214629561,-400.0,0.00013698,2]
[361048299,1747214629583,-400.0,0.00013698,2]
[361048300,1747214629605,-410.48105547,0.00013698,2]
[361048301,1747214629628,-405.79698677,0.00013698,2]
[361048302,1747214629651,-400.0,0.00013698,2]
[361048303,1747214629674,-413.9877589,0.00013698,2]
[361048304,1747214629697,-413.70506341,0.00013698,2]
[361048305,1747214629720,-266.19218933,0.00013698,2]
[361048306,1747214629743,-400.0,0.00013698,2]
[361048307,1747214629765,-401.08177,0.00013698,2]
[361048308,1747214629788,-400.0,0.00013698,2]
[361048309,1747214629811,-400.0,0.00013698,2]
[361048310,1747214629833,-400.0,0.00013698,2]
[361048311,1747214629856,-400.0,0.00013698,2]
[361048312,1747214629879,-311.60284022,0.00013698,2]
[361048313,1747214629902,-400.0,0.00013698,2]
[361048314,1747214629924,-406.30912319,0.00013698,2]
[361048315,1747214629948,-400.0,0.00013698,2]
[361048316,1747214629971,-400.0,0.00013698,2]
[361048317,1747214629995,-400.0,0.00013698,2]
[361048318,1747214630017,-432.08,0.00013698,2]
[361048319,1747214630040,-400.0,0.00013698,2]
[361048320,1747214630062,-400.73063081,0.00013698,2]
[361048321,1747214630088,-400.0,0.00013698,2]
[361048322,1747214630110,-407.4349215,0.00013698,2]
[361048323,1747214630133,-400.0,0.00013698,2]
[361048324,1747214630155,-400.0,0.00013698,2]
[361048325,1747214630179,-200.0,0.00013698,2]
[361048326,1747214630201,-407.45498257,0.00013698,2]
[361048327,1747214630228,-426.79051608,0.00013698,2]
[361048328,1747214630249,-400.0,0.00013698,2]
[361048329,1747214630272,-400.0,0.00013698,2]
[361048330,1747214630294,-400.0,0.00013698,2]
[361048331,1747214630317,-400.0,0.00013698,2]
[361048332,1747214630340,-496.12578421,0.00013698,2]
[361048333,1747214630366,-400.0,0.00013698,2]
[361048334,1747214630395,-400.0,0.00013698,2]
[361048335,1747214630418,-400.0,0.00013698,2]
[361048336,1747214630442,-400.0,0.00013698,2]
[361048337,1747214630464,-400.0,0.00013698,2]
[361048338,1747214630486,-400.0,0.00013698,2]
[361048339,1747214630508,-406.4285915,0.00013698,2]
[361048340,1747214630531,-413.511696,0.00013698,2]
[361048341,1747214630556,-400.0,0.00013698,2]
[361048342,1747214630580,-400.0,0.00013698,2]
[361048343,1747214630604,-206.15970409,0.00013698,2]
[361048344,1747214630626,-400.0,0.00013698,2]
[361048345,1747214630648,-400.0,0.00013698,2]
[361048346,1747214630671,-400.0,0.00013698,2]
[361048347,1747214630694,-400.0,0.00013698,2]
[361048348,1747214630717,-400.0,0.00013698,2]
[361048349,1747214630741,-400.0,0.00013698,2]
[361048350,1747214630764,-400.0,0.00013698,2]
[361048351,1747214630786,-400.0,0.00013698,2]
[361048352,1747214630812,-400.0,0.00013698,2]
[361048353,1747214630836,-400.0,0.00013698,2]
[361048354,1747214630859,-400.0,0.00013698,2]
[361048355,1747214630881,-400.0,0.00013698,2]
[361048356,1747214630904,-400.0,0.00013698,2]
[361048357,1747214630926,-400.0,0.00013698,2]
[361048358,1747214630949,-410.86223979,0.00013698,2]
[361048359,1747214630970,-400.0,0.00013698,2]
[361048360,1747214630992,-402.44679248,0.00013698,2]
[361048361,1747214631013,-400.0,0.00013698,2]
[361048362,1747214631035,-400.0,0.00013698,2]
[361048363,1747214631057,-400.0,0.00013698,2]
[361048364,1747214631079,-400.0,0.00013698,2]
[361048365,1747214631105,-400.0,0.00013698,2]
[361048366,1747214631125,-415.53499075,0.00013698,2]
[361048367,1747214631148,-400.0,0.00013698,2]
[361048368,1747214631177,-400.0,0.00013698,2]
[361048369,1747214631199,-400.0,0.00013698,2]
[361048370,1747214631223,-400.0,0.00013698,2]
[361048371,1747214631245,-400.0,0.00013698,2]
[361048372,1747214631268,-400.0,0.00013698,2]
[361048373,1747214631291,-443.40862504,0.00013698,2]
[361048374,1747214631314,-400.0,0.00013698,2]
[361048375,1747214631337,-400.0,0.00013698,2]
[361048376,1747214631360,-400.0,0.00013698,2]
[361048377,1747214631384,-400.0,0.00013698,2]
[361048378,1747214631407,-400.0,0.00013698,2]
[361048379,1747214631430,-400.0,0.00013698,2]
[361048380,1747214631453,-400.0,0.00013698,2]
[361048381,1747214631477,-400.0,0.00013698,2]
[361048382,1747214631500,-506.56552617,0.00013698,2]
[361048383,1747214631522,-400.0,0.00013698,2]
[361048384,1747214631545,-400.0,0.00013698,2]
[361048385,1747214631569,-400.0,0.00013698,2]
[361048386,1747214631592,-400.0,0.00013698,2]
[361048387,1747214631615,-400.0,0.00013698,2]
[361048388,1747214631638,-400.0,0.00013698,2]
[361048389,1747214631661,-400.0,0.00013698,2]
[361048390,1747214631684,-412.49924613,0.00013698,2]
[361048391,1747214631707,-400.0,0.00013698,2]
[361048392,1747214631730,-530.67927095,0.00013698,2]
[361048393,1747214631752,-400.0,0.00013698,2]
[361048394,1747214631776,-400.0,0.00013698,2]
[361048395,1747214631799,-400.0,0.00013698,2]
[361048396,1747214631822,-400.0,0.00013698,2]
[361048397,1747214631845,-400.0,0.00013698,2]
[361048398,1747214631868,-163.26511969,0.00013698,2]
[361048399,1747214631891,-178.70074609,0.00013698,2]
[361048400,1747214631914,-400.0,0.00013698,2]
[361048401,1747214631937,-400.0,0.00013698,2]
[361048402,1747214631960,-400.0,0.00013698,2]
[361048403,1747214631983,-400.0,0.00013698,2]
[361048404,1747214632006,-415.58193868,0.00013698,2]
[361048405,1747214632029,-400.0,0.00013698,2]
[361048406,1747214632052,-400.0,0.00013698,2]
[361048407,1747214632074,-400.0,0.00013698,2]
[361048408,1747214632100,-400.0,0.00013698,2]
[361048409,1747214632123,-400.0,0.00013698,2]
[361048410,1747214632147,-400.0,0.00013698,2]
[361048411,1747214632171,-400.0,0.00013698,2]
[361048412,1747214632194,-400.0,0.00013698,2]
[361048413,1747214632344,-400.0,0.00013698,2]
[361048414,1747214632367,-400.0,0.00013698,2]
[361048415,1747214632389,-400.0,0.00013698,2]
[361048416,1747214632412,-400.0,0.00013698,2]
[361048417,1747214632434,-321.65358283,0.00013698,2]
[361048418,1747214632456,-400.0,0.00013698,2]
[361048419,1747214632479,-400.0,0.00013698,2]
[361048420,1747214632502,-404.04898159,0.00013698,2]
[361048421,1747214632524,-400.0,0.00013698,2]
[361048422,1747214632547,-400.0,0.00013698,2]
[361048423,1747214632569,-400.0,0.00013698,2]
[361048424,1747214632592,-400.0,0.00013698,2]
[361048425,1747214632614,-400.0,0.00013698,2]
[361048426,1747214632636,-400.0,0.00013698,2]
[361048427,1747214632660,-400.0,0.00013698,2]
[361048428,1747214632683,-400.0,0.00013698,2]
[361048429,1747214632706,-400.0,0.00013698,2]
[361048430,1747214632728,-404.71425482,0.00013698,2]
[361048431,1747214632750,-400.0,0.00013698,2]
[361048432,1747214632774,-400.0,0.00013698,2]
[361048433,1747214632797,-400.0,0.00013698,2]
[361048434,1747214632819,-400.0,0.00013698,2]
[361048435,1747214632842,-408.86678483,0.00013698,2]
[361048436,1747214632864,-400.0,0.00013698,2]
[361048437,1747214632886,-417.76999194,0.00013698,2]
[361048438,1747214632909,-400.0,0.00013698,2]
[361048439,1747214632933,-400.0,0.00013698,2]
[361048440,1747214632956,-400.0,0.00013698,2]
[361048441,1747214632980,-400.0,0.00013698,2]
[361048442,1747214633005,-400.0,0.00013698,2]
[361048443,1747214633027,-400.0,0.00013698,2]
[361048444,1747214633050,-400.0,0.00013698,2]
[361048445,1747214633072,-400.13002686,0.00013698,2]
[361048446,1747214633098,-400.0,0.00013698,2]
[361048447,1747214633120,-413.5186324,0.00013698,2]
[361048448,1747214633144,-400.0,0.00013698,2]
[361048449,1747214633167,-400.0,0.00013698,2]
[361048450,1747214633190,-264.98108851,0.00013698,2]
[361048451,1747214633212,-400.0,0.00013698,2]
[361048452,1747214633235,-300.0,0.00013698,2]
[361048453,1747214633259,-400.0,0.00013698,2]
[361048454,1747214633282,-506.60203319,0.00013698,2]
[361048455,1747214633305,-400.0,0.00013698,2]
[361048456,1747214633328,-403.98749661,0.00013698,2]
[361048457,1747214633350,-400.0,0.00013698,2]
[361048458,1747214633372,-400.0,0.00013698,2]
[361048459,1747214633395,-400.0,0.00013698,2]
[361048460,1747214633418,-400.0,0.00013698,2]
[361048461,1747214633440,-413.59855902,0.00013698,2]
[361048462,1747214633464,-400.0,0.00013698,2]
[361048463,1747214633486,-400.0,0.00013698,2]
[361048464,1747214633508,-400.0,0.00013698,2]
[361048465,1747214633531,-489.40532716,0.00013698,2]
[361048466,1747214633555,-400.0,0.00013698,2]
[361048467,1747214633580,-400.0,0.00013698,2]
[361048468,1747214633608,-400.0,0.00013698,2]
[361048469,1747214633631,-405.57451866,0.00013698,2]
[361048470,1747214633655,-252.26997223,0.00013698,2]
[361048522,1747215032403,-817.0423538,0.00011532,2]
[361048524,1747215032414,-465.41350044,0.00013598,2]
[361048526,1747215032424,-500.0,0.00013697,2]
[361048528,1747215032434,-500.0,0.00013697,2]
[361048530,1747215032444,-330.83003437,0.00013697,2]
[361048533,1747215032454,-500.0,0.00013697,2]
[361048534,1747215032464,-500.0,0.00013697,2]
[361048536,1747215032473,-525.58780657,0.00013697,2]
[361048541,1747215032586,-85.78655597,0.00013697,2]
[361048542,1747215032596,-500.0,0.00013697,2]
[361048543,1747215032606,-324.68223891,0.00013697,2]
[361048544,1747215032616,-434.76380619,0.00013697,2]
[361048545,1747215032627,-147.73002777,0.00013698,2]
[361048546,1747215032636,-400.0,0.00013698,2]
[361048547,1747215032646,-400.0,0.00013698,2]
[361048548,1747215032655,-400.0,0.00013698,2]
[361048549,1747215032665,-400.0,0.00013698,2]
[361048550,1747215032674,-218.23511087,0.00013698,2]
[361048551,1747215032684,-169.88174466,0.00013698,2]
[361048552,1747215032694,-400.0,0.00013698,2]
[361048553,1747215032704,-400.0,0.00013698,2]
[361048554,1747215032714,-400.0,0.00013698,2]
[361048555,1747215032723,-400.0,0.00013698,2]
[361048556,1747215032735,-400.0,0.00013698,2]
[361048557,1747215032745,-430.66145062,0.00013698,2]
[361048558,1747215032755,-400.0,0.00013698,2]
[361048559,1747215032765,-400.0,0.00013698,2]
[361048560,1747215032775,-400.0,0.00013698,2]
[361048561,1747215032785,-400.0,0.00013698,2]
[361048562,1747215032794,-400.0,0.00013698,2]